[Event "36th National Sub Junior 2019"]
[Site "Tiruchengode"]
[Date "2019.07.13"]
[Round "7.5"]
[White "Nayanikaa Muralidharan"]
[Black "Arushi Kotwal"]
[Result "1/2-1/2"]
[ECO "D70"]
[WhiteElo "1475"]
[BlackElo "1744"]
[Annotator "NA"]
[PlyCount "135"]
[EventDate "2019.07.09"]
[EventCountry "IND"]
[SourceTitle "playchess.com"]
[Source "ChessBase"]
[SourceQuality "1"]
[TimeControl "5400+30"]

1. d4 {[%emt 0:00:47]} Nf6 {[%emt 0:00:00]} 2. c4 {[%emt 0:00:10]} g6 {[%emt 0:00:00]} 3. f3 {[%emt 0:00:11]} d5 {[%emt 0:00:00]} 4. cxd5 {[%emt 0:00:12]} Nxd5 {[%emt 0:00:00]} 5. e4 {[%emt 0:00:08]} Nb6 {[%emt 0:00:00]} 6. Nc3 {[%emt 0:00:15]} Bg7 {[%emt 0:00:10]} 7. Be3 {[%emt 0:00:18]} O-O {[%emt 0:00:18]} 8. Qd2 {[%emt 0:00:03]} Nc6 {[%emt 0:01:07]} 9. O-O-O {[%emt 0:00:12]} f5 {[%emt 0:12:53]} 10. e5 {[%emt 0:02:27]} Nb4 {[%emt 0:04:46]} 11. Kb1 {[%emt 0:04:34]} N4d5 {[%emt 0:01:28]} 12. Bf2 {[%emt 0:08:58]} Nxc3+ {[%emt 0:07:10]} 13. Qxc3 {[%emt 0:00:46]} Be6 {[%emt 0:00:54]} 14. Bd3 {[%emt 0:12:14]} a5 {[%emt 0:01:23]} 15. Ne2 {[%emt 0:03:42]} Nd5 {[%emt 0:07:03]} 16. Qc1 {[%emt 0:03:39]} Nb4 {[%emt 1:00:48]} 17. Bc4 {[%emt 0:01:46]} Bxc4 {[%emt 0:00:00]} 18. Qxc4+ {[%emt 0:00:09]} Qd5 {[%emt 0:00:00]} 19. Qxd5+ {[%emt 0:00:46]} Nxd5 {[%emt 0:00:00]} 20. h4 {[%emt 0:04:07]} Rfd8 {[%emt 0:00:00]} 21. f4 {[%emt 0:02:02]} Rd7 {[%emt 0:00:00]} 22. g3 {[%emt 0:02:08]} e6 {[%emt 0:00:00]} 23. Rc1 {[%emt 0:01:46]} Bf8 {[%emt 0:03:30]} 24. Rhd1 {[%emt 0:02:26]} Rad8 {[%emt 0:00:00]} 25. Be1 {[%emt 0:02:56]} Ra8 {[%emt 0:00:00]} 26. Rd3 {[%emt 0:03:45]} Be7 {[%emt 0:00:00]} 27. Rb3 {[%emt 0:03:47]} c6 {[%emt 0:00:00]} 28. a3 {[%emt 0:03:03]} Bd8 {[%emt 0:00:00]} 29. Bf2 {[%emt 0:03:20]} Kg7 {[%emt 0:00:00]} 30. Rc2 {[%emt 0:01:53]} Kh6 {[%emt 0:00:00]} 31. Rd3 {[%emt 0:01:45]} Kh5 {[%emt 0:00:00]} 32. Rc1 {[%emt 0:02:40]} Bb6 {[%emt 0:00:00]} 33. Rcd1 {[%emt 0:01:32]} Rad8 {[%emt 0:00:00]} 34. Kc2 {[%emt 0:01:45]} Rc8 {[%emt 0:00:00]} 35. Nc3 {[%emt 0:02:43]} Nxc3 {[%emt 0:00:00]} 36. bxc3 {[%emt 0:00:27]} Ba7 {[%emt 0:00:00]} 37. c4 {[%emt 0:01:18]} b5 {[%emt 0:00:00]} 38. c5 {[%emt 0:01:18]} Bb8 {[%emt 0:00:00]} 39. Be1 {[%emt 0:01:07]} Bc7 {[%emt 0:00:00]} 40. Bc3 {[%emt 0:01:03]} Ra8 {[%emt 0:00:00]} 41. Ra1 {[%emt 0:00:44]} Kh6 {[%emt 0:00:00]} 42. Be1 {[%emt 0:01:19]} Kg7 {[%emt 0:00:00]} 43. a4 {[%emt 0:01:44]} b4 {[%emt 0:00:00]} 44. Kb3 {[%emt 0:00:12]} Rh8 {[%emt 0:00:00]} 45. Ra2 {[%emt 0:01:25]} Kf8 {[%emt 0:00:05]} 46. Rh2 {[%emt 0:00:36]} h6 {[%emt 0:03:25]} 47. Bd2 {[%emt 0:01:24]} Bd8 {[%emt 0:00:14]} 48. Be3 {[%emt 0:00:25]} Be7 {[%emt 0:01:17]} 49. Rdd2 {[%emt 0:01:28]} Bd8 {[%emt 0:00:38]} 50. Rd3 {[%emt 0:00:09]} Rg8 {[%emt 0:00:34]} 51. Rdd2 {[%emt 0:03:15]} Rdg7 {[%emt 0:00:23]} 52. Rdf2 {[%emt 0:02:51]} Ke8 {[%emt 0:00:33]} 53. Rf1 {[%emt 0:02:17]} Kd7 {[%emt 0:00:59]} 54. Rfh1 {[%emt 0:03:48]} Ke8 {[%emt 0:00:26]} 55. Rh3 {[%emt 0:00:22]} g5 {[%emt 0:01:33]} 56. hxg5 {[%emt 0:03:51]} hxg5 {[%emt 0:00:06]} 57. Rh6 {[%emt 0:00:04]} Kd7 {[%emt 0:00:34]} 58. Rh7 {[%emt 0:00:08]} gxf4 {[%emt 0:00:34]} 59. Bxf4 {[%emt 0:00:20]} Ke8 {[%emt 0:01:30]} 60. R1h6 {[%emt 0:00:58]} Rg6 {[%emt 0:00:43]} 61. Rh8 {[%emt 0:01:20]} Rxh8 {[%emt 0:00:50]} 62. Rxh8+ {[%emt 0:00:05]} Kd7 {[%emt 0:00:53]} 63. Rh7+ {[%emt 0:00:04]} Be7 {[%emt 0:00:42]} 64. Rh8 {[%emt 0:00:15]} Bd8 {[%emt 0:00:05]} 65. Rh7+ {[%emt 0:05:18]} Kc8 66. Rh8 {[%emt 0:00:30]} Rg7 {[%emt 0:05:26]} 67. Rh6 {[%emt 0:00:30]} Rg6 68. Rh7 {[%emt 0:00:30]} 1/2-1/2

[Event "36th National Sub Junior 2019"]
[Site "Tiruchengode"]
[Date "2019.07.14"]
[Round "8.1"]
[White "Divya Deshmukh"]
[Black "Bhagyashree Patil"]
[Result "1-0"]
[ECO "E16"]
[WhiteElo "2373"]
[BlackElo "1703"]
[Annotator "ChessBase"]
[PlyCount "79"]
[EventDate "2019.07.09"]
[EventCountry "IND"]
[SourceTitle "playchess.com"]
[Source "ChessBase"]
[SourceQuality "1"]
[TimeControl "5400+30"]

1. d4 {[%emt 0:00:00]} d5 {[%emt 0:00:00]} 2. c4 {[%emt 0:00:00]} e6 {[%emt 0:00:00]} 3. Nc3 {[%emt 0:00:00]} Nf6 {[%emt 0:00:00]} 4. Nf3 {[%emt 0:00:00]} Be7 {[%emt 0:00:39]} 5. g3 {[%emt 0:00:00]} O-O {[%emt 0:01:53]} 6. Bg2 {[%emt 0:00:00]} b6 {[%emt 0:02:00]} 7. O-O {[%emt 0:00:23]} Bb7 {[%emt 0:00:04]} 8. Ne5 {[%emt 0:02:48]} Nbd7 {[%emt 0:04:11]} 9. Bf4 {[%emt 0:00:04]} c6 {[%emt 0:01:07]} 10. Qc2 {[%emt 0:12:47]} Nxe5 {[%emt 0:05:42]} 11. Bxe5 {[%emt 0:05:32]} Nd7 {[%emt 0:03:40]} 12. Bf4 {[%emt 0:03:09]} Bg5 {[%emt 0:01:38]} 13. Bxg5 {[%emt 0:05:15]} Qxg5 {[%emt 0:00:05]} 14. e4 {[%emt 0:00:37]} Rac8 {[%emt 0:17:47]} 15. cxd5 {[%emt 0:04:56]} cxd5 {[%emt 0:00:24]} 16. Qa4 {[%emt 0:06:41]} Rc7 {[%emt 0:02:09]} 17. e5 {[%emt 0:05:37]} Qd2 {[%emt 0:03:07]} 18. Qb3 {[%emt 0:01:31]} Ba6 {[%emt 0:03:29]} 19. Rad1 {[%emt 0:01:17]} Qh6 {[%emt 0:01:49]} 20. Rfe1 {[%emt 0:00:05]} Bc4 {[%emt 0:01:40]} 21. Qa3 {[%emt 0:00:19]} Rfc8 {[%emt 0:01:36]} 22. Bf1 {[%emt 0:06:28]} a5 {[%emt 0:05:35]} 23. Qd6 {[%emt 0:06:28]} Rb7 {[%emt 0:21:03]} 24. Nb5 {[%emt 0:15:10]} Bxf1 {[%emt 0:01:34]} 25. Rxf1 {[%emt 0:00:14]} g6 {[%emt 0:01:42]} 26. Rd3 {[%emt 0:05:12]} Nb8 {[%emt 0:06:40]} 27. Rc3 {[%emt 0:02:30]} Rxc3 {[%emt 0:00:29]} 28. bxc3 {[%emt 0:00:07]} Qf8 {[%emt 0:00:50]} 29. Rb1 {[%emt 0:00:03]} Qc8 {[%emt 0:01:47]} 30. Kg2 {[%emt 0:04:35]} Kg7 {[%emt 0:01:18]} 31. Qa3 {[%emt 0:01:14]} Qc6 {[%emt 0:01:39]} 32. Nd6 {[%emt 0:00:10]} Ra7 {[%emt 0:00:20]} 33. Qc1 {[%emt 0:00:43]} Nd7 {[%emt 0:04:58]} 34. Qf4 {[%emt 0:01:17]} Nf8 {[%emt 0:00:24]} 35. Rxb6 {[%emt 0:01:24]} Qa8 {[%emt 0:01:05]} 36. Qf6+ {[%emt 0:01:43]} Kg8 {[%emt 0:00:03]} 37. a4 {[%emt 0:05:11]} Rc7 {[%emt 0:02:15]} 38. Ra6 {[%emt 0:00:25]} Qb8 {[%emt 0:01:00]} 39. Rxa5 {[%emt 0:00:05]} h6 {[%emt 0:00:25]} 40. Rc5 {[%emt 0:00:46]} 1-0

[Event "36th National Sub Junior 2019"]
[Site "Tiruchengode"]
[Date "2019.07.14"]
[Round "8.2"]
[White "Sai Divya M"]
[Black "Mrudul Dehankar"]
[Result "0-1"]
[ECO "E11"]
[WhiteElo "1784"]
[BlackElo "2074"]
[Annotator "NA"]
[PlyCount "180"]
[EventDate "2019.07.09"]
[EventCountry "IND"]
[SourceTitle "playchess.com"]
[Source "ChessBase"]
[SourceQuality "1"]
[TimeControl "5400+30"]

1. d4 {[%emt 0:00:00]} Nf6 {[%emt 0:00:00]} 2. c4 {[%emt 0:00:21]} e6 {[%emt 0:00:00]} 3. g3 {[%emt 0:00:33]} Bb4+ {[%emt 0:00:05]} 4. Bd2 {[%emt 0:00:28]} c5 {[%emt 0:00:51]} 5. Bxb4 {[%emt 0:02:41]} cxb4 {[%emt 0:00:06]} 6. Bg2 {[%emt 0:00:10]} O-O {[%emt 0:00:37]} 7. Nf3 {[%emt 0:00:56]} d6 {[%emt 0:00:23]} 8. O-O {[%emt 0:01:34]} Nc6 {[%emt 0:00:08]} 9. Nbd2 {[%emt 0:01:27]} e5 {[%emt 0:03:11]} 10. d5 {[%emt 0:01:54] E11: Bogo-Indian} Nb8 {[%emt 0:03:55]} 11. e4 {[%emt 0:02:20]} (11. a3 Na6 12. Ne1 Qb6 13. Nd3 Bf5 14. e4 Bg4 15. Bf3 Bxf3 16. Qxf3 Nd7 17. Qe3 Ndc5 18. Nxc5 Nxc5 {½-½ (31) Wang,Y (2739)-Ivanchuk,V (2779) Linares 2009}) 11... Na6 {[%emt 0:03:09]} 12. Ne1 {[%emt 0:00:37]} Nc5 {[%emt 0:06:06]} 13. a3 {[%emt 0:03:05]} bxa3 {[%emt 0:08:29] [#]} (13... Qb6 $11 {remains equal.}) 14. b4 $1 $146 {[%emt 0:00:24]} ({Predecessor:} 14. Rxa3 Bg4 15. f3 Bd7 16. Kh1 a5 17. Nd3 Nxd3 18. Rxd3 {½-½ (28) Berkley,S (1683)-Fedorko,A (2067) IECC email 1999}) 14... Na6 {[%emt 0:01:58]} 15. Nd3 {[%emt 0:00:56]} Bg4 {[%emt 0:04:52]} 16. f3 {[%emt 0:03:18]} Bd7 {[%emt 0:06:57]} 17. Kh1 {[%emt 0:05:13]} Qc8 {[%emt 0:25:20]} ({Better is} 17... b5) 18. Qc2 {[%emt 0:05:55]} Nc7 {[%emt 0:05:49]} 19. Nb3 {[%emt 0:09:10]} Qd8 {[%emt 0:09:41]} 20. Rxa3 {[%emt 0:01:40]} Qe7 {[%emt 0:03:52]} 21. Qf2 {[%emt 0:04:04]} a6 {[%emt 0:05:59]} 22. Qb6 {[%emt 0:01:28]} Bc8 {[%emt 0:02:28]} 23. Na5 {[%emt 0:04:55]} Nfe8 {[%emt 0:01:12]} 24. f4 {[%emt 0:06:01]} f5 {[%emt 0:03:05]} 25. exf5 {[%emt 0:03:42]} e4 {[%emt 0:01:43]} 26. Nf2 {[%emt 0:00:42]} Bxf5 {[%emt 0:00:27]} 27. Re3 {[%emt 0:02:20]} Nf6 {[%emt 0:00:11]} 28. Rfe1 {[%emt 0:02:55]} ({White should play} 28. Qxb7 $18 Rfe8 29. Nc6) 28... Ncxd5 {[%emt 0:00:57]} 29. cxd5 {[%emt 0:00:07]} Nxd5 {[%emt 0:00:05]} 30. Qxb7 $17 {[%emt 0:00:48]} (30. Qd4 $16 {is forced if you want to stay better.} Nxe3 31. Rxe3) 30... Qxb7 {[%emt 0:00:09]} 31. Nxb7 {[%emt 0:00:03]} Nxe3 {[%emt 0:00:04]} 32. Rxe3 {[%emt 0:00:06]} d5 {[%emt 0:00:18]} 33. Nc5 {[%emt 0:03:02]} a5 {[%emt 0:01:22]} 34. Bxe4 {[%emt 0:07:40]} dxe4 {[%emt 0:00:07]} 35. bxa5 {[%emt 0:00:05]} Rxa5 {[%emt 0:01:15]} 36. Ncxe4 {[%emt 0:01:14]} Ra2 {[%emt 0:00:57]} 37. Kg2 {[%emt 0:01:46]} Rb8 {[%emt 0:00:42]} 38. Nc3 {[%emt 0:02:25]} Rc2 {[%emt 0:00:39]} 39. Kf3 {[%emt 0:02:07]} Bd7 {[%emt 0:00:41]} 40. h3 {[%emt 0:03:08]} Bc6+ {[%emt 0:00:34]} 41. Nce4 {[%emt 0:00:25]} Rd8 {[%emt 0:01:10]} 42. Ng4 {[%emt 0:00:45]} Rd4 {[%emt 0:00:24]} 43. Ne5 {[%emt 0:00:26]} Bd5 {[%emt 0:00:25]} 44. f5 {[%emt 0:00:41]} Rb4 {[%emt 0:00:52]} 45. Nd3 {[%emt 0:01:07]} Rb1 {[%emt 0:00:33]} 46. Kf4 {[%emt 0:01:02]} Rf1+ {[%emt 0:00:31]} 47. Ke5 {[%emt 0:00:30]} Bxe4 {[%emt 0:00:33]} 48. Kxe4 {[%emt 0:00:26]} Rc8 {[%emt 0:00:23]} 49. Nf4 {[%emt 0:01:33]} Re8+ {[%emt 0:00:09]} 50. Ne6 {[%emt 0:00:10]} g6 {[%emt 0:00:24]} 51. g4 {[%emt 0:00:13]} Kf7 {[%emt 0:00:44]} 52. Ke5 {[%emt 0:00:53]} Rf2 {[%emt 0:00:49]} 53. Ra3 {[%emt 0:02:49]} gxf5 {[%emt 0:00:31]} 54. Ra7+ {[%emt 0:02:57]} Re7 {[%emt 0:00:30]} 55. Rxe7+ {[%emt 0:00:20]} Kxe7 {[%emt 0:00:01]} 56. gxf5 {[%emt 0:00:07]} Re2+ {[%emt 0:00:05]} 57. Kf4 {[%emt 0:00:26]} Kf6 {[%emt 0:00:07]} 58. Ng5 {[%emt 0:01:51]} Rf2+ {[%emt 0:01:25]} 59. Nf3 {[%emt 0:00:26]} h6 {[%emt 0:00:28]} 60. Kg4 {[%emt 0:03:00]} h5+ {[%emt 0:00:42]} 61. Kg3 {[%emt 0:01:53]} Rf1 {[%emt 0:00:29]} 62. Kg2 {[%emt 0:01:02]} Ra1 {[%emt 0:00:14]} 63. Kg3 {[%emt 0:00:33]} Ra4 {[%emt 0:00:27]} 64. Nh4 {[%emt 0:01:14]} Kg5 {[%emt 0:00:07]} 65. Nf3+ {[%emt 0:00:10]} Kxf5 {[%emt 0:00:21]} 66. Nh4+ {[%emt 0:00:07]} Ke4 {[%emt 0:00:19]} 67. Ng6 {[%emt 0:00:57]} Ra6 {[%emt 0:00:29]} 68. Nf8 {[%emt 0:01:04]} Kf5 {[%emt 0:01:03]} 69. Nd7 {[%emt 0:00:54]} Ra4 {[%emt 0:00:13]} 70. Nb6 {[%emt 0:01:05]} h4+ {[%emt 0:00:30]} 71. Kf3 {[%emt 0:00:19]} Ra3+ {[%emt 0:00:11]} 72. Kg2 {[%emt 0:00:02]} Rd3 {[%emt 0:00:14]} 73. Nc4 {[%emt 0:00:36]} Kf4 {[%emt 0:00:05]} 74. Nb6 {[%emt 0:00:24]} Rd2+ {[%emt 0:00:09]} 75. Kg1 {[%emt 0:00:09]} Kg3 {[%emt 0:00:03]} 76. Kf1 {[%emt 0:00:03]} Kxh3 {[%emt 0:00:11]} 77. Nc4 {[%emt 0:00:04]} Ra2 {[%emt 0:00:43]} 78. Ne3 {[%emt 0:00:09]} Kg3 {[%emt 0:00:54]} 79. Nf5+ {[%emt 0:00:07]} Kg4 {[%emt 0:00:09]} 80. Ne3+ {[%emt 0:00:26]} Kf3 {[%emt 0:00:09]} 81. Nd1 {[%emt 0:00:04]} Ra1 {[%emt 0:00:25]} 82. Ke1 {[%emt 0:00:03]} h3 {[%emt 0:00:04]} 83. Kd2 {[%emt 0:00:05]} h2 {[%emt 0:04:51]} 84. Nb2 {[%emt 0:00:13]} h1=Q {[%emt 0:00:00]} 85. Nc4 {[%emt 0:00:04]} Qd1+ {[%emt 0:00:00]} 86. Kc3 {[%emt 0:00:05]} Rc1+ {[%emt 0:00:00]} 87. Kb4 {[%emt 0:00:05]} Qd4 {[%emt 0:00:00]} 88. Ka3 {[%emt 0:00:08]} Qxc4 {[%emt 0:00:00]} 89. Kb2 {[%emt 0:00:04]} Qc3+ {[%emt 0:00:00]} 90. Ka2 {[%emt 0:00:03]} Ra1# {[%emt 0:00:00]} 0-1

[Event "36th National Sub Junior 2019"]
[Site "Tiruchengode"]
[Date "2019.07.14"]
[Round "8.3"]
[White "Poorna Sri M.K"]
[Black "Divyabharathi Masanam"]
[Result "1/2-1/2"]
[ECO "B35"]
[WhiteElo "1681"]
[BlackElo "1730"]
[Annotator "NA"]
[PlyCount "54"]
[EventDate "2019.07.09"]
[EventCountry "IND"]
[SourceTitle "playchess.com"]
[Source "ChessBase"]
[SourceQuality "1"]
[TimeControl "5400+30"]

1. e4 {[%emt 0:00:00]} c5 {[%emt 0:01:42]} 2. Nf3 {[%emt 0:00:00]} g6 {[%emt 0:00:35]} 3. d4 {[%emt 0:00:02]} cxd4 {[%emt 0:00:05]} 4. Nxd4 {[%emt 0:00:06]} Bg7 {[%emt 0:00:05]} 5. Nc3 {[%emt 0:00:14]} Nc6 {[%emt 0:01:40]} 6. Be3 {[%emt 0:00:12]} Nf6 {[%emt 0:00:36]} 7. Bc4 {[%emt 0:00:17]} O-O {[%emt 0:04:01]} 8. Bb3 {[%emt 0:00:17]} Ng4 {[%emt 0:04:23]} 9. Qxg4 {[%emt 0:04:54]} Nxd4 {[%emt 0:00:14]} 10. Qd1 {[%emt 0:02:37]} Nxb3 {[%emt 0:04:37]} 11. axb3 {[%emt 0:00:19]} a6 {[%emt 0:01:23]} 12. Nd5 {[%emt 0:08:51]} d6 {[%emt 0:07:40]} 13. Bb6 {[%emt 0:11:40]} Qd7 {[%emt 0:00:05]} 14. Ba5 {[%emt 0:02:27]} Rb8 {[%emt 0:05:56]} 15. c3 {[%emt 0:09:08]} b5 {[%emt 0:06:39]} 16. O-O {[%emt 0:06:10]} Bb7 {[%emt 0:05:35]} 17. f4 {[%emt 0:02:57]} e6 {[%emt 0:06:16]} 18. Nb6 {[%emt 0:04:31]} Qc6 {[%emt 0:01:38]} 19. Qe2 {[%emt 0:03:39]} Rfe8 {[%emt 0:03:54]} 20. Rfe1 {[%emt 0:04:27]} Bf8 {[%emt 0:07:27]} 21. b4 {[%emt 0:07:38]} Bh6 {[%emt 0:04:11]} 22. Qf2 {[%emt 0:12:31]} Bf8 {[%emt 0:08:12]} 23. Qe2 {[%emt 0:00:12]} Bh6 {[%emt 0:00:04]} 24. Qf2 {[%emt 0:00:23]} Bf8 {[%emt 0:00:06]} 25. Qe2 {[%emt 0:00:05]} Bh6 {[%emt 0:00:02]} 26. Qf2 {[%emt 0:00:12]} Bf8 {[%emt 0:00:08]} 27. Qe2 {[%emt 0:00:07]} Bh6 {[%emt 0:00:06]} 1/2-1/2

[Event "36th National Sub Junior 2019"]
[Site "Tiruchengode"]
[Date "2019.07.14"]
[Round "8.4"]
[White "Jain Nityata"]
[Black "Rindhiya V"]
[Result "1-0"]
[ECO "C47"]
[WhiteElo "2135"]
[BlackElo "1573"]
[Annotator "ChessBase"]
[PlyCount "115"]
[EventDate "2019.07.09"]
[EventCountry "IND"]
[SourceTitle "playchess.com"]
[Source "ChessBase"]
[SourceQuality "1"]
[TimeControl "5400+30"]

1. e4 {[%emt 0:00:00]} e5 {[%emt 0:00:00]} 2. Nf3 {[%emt 0:00:00]} Nc6 {[%emt 0:00:00]} 3. d4 {[%emt 0:00:00]} exd4 {[%emt 0:00:00]} 4. Nxd4 {[%emt 0:00:00]} Nf6 {[%emt 0:00:05]} 5. Nc3 {[%emt 0:00:12]} Bb4 {[%emt 0:00:07]} 6. Nxc6 {[%emt 0:00:13]} bxc6 {[%emt 0:00:08]} 7. Bd3 {[%emt 0:00:05]} d5 {[%emt 0:00:05]} 8. exd5 {[%emt 0:00:11]} cxd5 {[%emt 0:00:02]} 9. O-O {[%emt 0:00:08]} O-O {[%emt 0:00:07]} 10. Bg5 {[%emt 0:00:05]} c6 {[%emt 0:00:11]} 11. Na4 {[%emt 0:00:08]} h6 {[%emt 0:00:51]} 12. Bh4 {[%emt 0:00:07]} Be7 {[%emt 0:01:53]} 13. Re1 {[%emt 0:00:54]} Be6 {[%emt 0:02:58]} 14. c3 {[%emt 0:01:19]} Nd7 {[%emt 0:06:35]} 15. Bg3 {[%emt 0:16:56]} Nb6 {[%emt 0:04:45]} 16. Bc2 {[%emt 0:01:15]} Bd7 {[%emt 0:34:23]} 17. Qd3 {[%emt 0:18:11]} f5 {[%emt 0:01:07]} 18. Nxb6 {[%emt 0:10:22]} axb6 {[%emt 0:00:08]} 19. Be5 {[%emt 0:11:55]} Bf6 {[%emt 0:09:51]} 20. Bb3 {[%emt 0:01:09]} Bxe5 {[%emt 0:06:49]} 21. Rxe5 {[%emt 0:00:07]} Qf6 {[%emt 0:00:22]} 22. Rae1 {[%emt 0:01:36]} Rae8 {[%emt 0:02:38]} 23. Rxe8 {[%emt 0:03:24]} Rxe8 {[%emt 0:00:27]} 24. Rxe8+ {[%emt 0:00:06]} Bxe8 {[%emt 0:00:01]} 25. Qe3 {[%emt 0:00:11]} Bg6 {[%emt 0:03:01]} 26. Qxb6 {[%emt 0:00:38]} f4 {[%emt 0:00:12]} 27. Qd4 {[%emt 0:02:46]} Qf5 {[%emt 0:01:46]} 28. Qd1 {[%emt 0:01:53]} f3 {[%emt 0:01:14]} 29. g3 {[%emt 0:06:33]} Qd3 {[%emt 0:12:33]} 30. Qxd3 {[%emt 0:02:51]} Bxd3 {[%emt 0:00:02]} 31. Ba4 {[%emt 0:00:05]} c5 {[%emt 0:00:33]} 32. Bc6 {[%emt 0:00:06]} Be2 {[%emt 0:04:02]} 33. Bxd5+ {[%emt 0:02:17]} Kf8 {[%emt 0:09:34]} 34. b4 {[%emt 0:02:06]} cxb4 {[%emt 0:00:00]} 35. cxb4 {[%emt 0:00:04]} Ke7 {[%emt 0:00:00]} 36. Bc6 {[%emt 0:01:06]} Kd6 {[%emt 0:00:00]} 37. b5 {[%emt 0:00:12]} Kc5 {[%emt 0:02:00]} 38. a4 {[%emt 0:00:27]} Kb6 {[%emt 0:00:00]} 39. g4 {[%emt 0:02:18]} g5 {[%emt 0:00:00]} 40. h3 {[%emt 0:01:30]} Bd1 {[%emt 0:00:00]} 41. Kh2 {[%emt 0:00:41]} Bxa4 {[%emt 0:00:00]} 42. Kg3 {[%emt 0:00:20]} Bc2 {[%emt 0:00:00]} 43. Kxf3 {[%emt 0:00:27]} Bd3 {[%emt 0:00:00]} 44. Kg3 {[%emt 0:00:46]} Bf1 {[%emt 0:02:16]} 45. h4 {[%emt 0:00:44]} Be2 {[%emt 0:00:50]} 46. hxg5 {[%emt 0:00:16]} hxg5 {[%emt 0:00:01]} 47. f4 {[%emt 0:01:37]} gxf4+ {[%emt 0:00:01]} 48. Kxf4 {[%emt 0:00:08]} Bd3 {[%emt 0:00:03]} 49. Ke5 {[%emt 0:00:21]} Kc5 {[%emt 0:02:49]} 50. g5 {[%emt 0:00:16]} Bc2 {[%emt 0:00:00]} 51. Kf6 {[%emt 0:01:13]} Kd6 {[%emt 0:00:00]} 52. g6 {[%emt 0:00:24]} Bxg6 {[%emt 0:00:00]} 53. Kxg6 {[%emt 0:00:08]} Kc7 {[%emt 0:00:00]} 54. Kf6 {[%emt 0:00:13]} Kb6 {[%emt 0:00:00]} 55. Ke5 {[%emt 0:00:34]} Kc7 {[%emt 0:00:00]} 56. Kd5 {[%emt 0:00:21]} Kb6 {[%emt 0:00:00]} 57. Kc4 {[%emt 0:00:05]} Ka5 {[%emt 0:00:00]} 58. Kc5 {[%emt 0:00:19]} 1-0

[Event "36th National Sub Junior 2019"]
[Site "Tiruchengode"]
[Date "2019.07.14"]
[Round "8.5"]
[White "Jyothsna L"]
[Black "Rebecca Jesumarian"]
[Result "1-0"]
[ECO "E91"]
[WhiteElo "1939"]
[BlackElo "1566"]
[Annotator "NA"]
[PlyCount "141"]
[EventDate "2019.07.09"]
[EventCountry "IND"]
[SourceTitle "playchess.com"]
[Source "ChessBase"]
[SourceQuality "1"]
[TimeControl "5400+30"]

1. d4 {[%emt 0:00:57]} Nf6 {[%emt 0:00:00]} 2. Nf3 {[%emt 0:00:02]} g6 {[%emt 0:00:00]} 3. c4 {[%emt 0:00:01]} Bg7 {[%emt 0:00:00]} 4. Nc3 {[%emt 0:00:02]} O-O {[%emt 0:00:13]} 5. Bg5 {[%emt 0:00:02]} c5 {[%emt 0:00:32]} 6. d5 {[%emt 0:00:29]} d6 {[%emt 0:01:40]} 7. e4 {[%emt 0:04:17]} b5 {[%emt 0:02:17]} 8. cxb5 {[%emt 0:05:28]} a6 {[%emt 0:00:27]} 9. bxa6 {[%emt 0:00:50]} (9. a4 $16) 9... Bxa6 {[%emt 0:02:59]} 10. Bxa6 {[%emt 0:00:33]} Nxa6 {[%emt 0:01:36]} 11. O-O {[%emt 0:01:54]} Qb6 {[%emt 0:15:04]} 12. Rb1 {[%emt 0:14:55]} h6 {[%emt 0:12:47]} 13. Bh4 {[%emt 0:06:05]} Qb7 {[%emt 0:10:02]} 14. Re1 {[%emt 0:09:56]} Rfb8 {[%emt 0:07:51]} 15. a3 {[%emt 0:16:18]} Nc7 {[%emt 0:09:34]} 16. h3 $14 {[%emt 0:09:20]} Ra6 {[%emt 0:10:10]} 17. Nd2 {[%emt 0:02:58]} Nb5 {[%emt 0:02:05]} 18. Nxb5 {[%emt 0:02:29]} Qxb5 {[%emt 0:01:15]} 19. Re3 {[%emt 0:03:12]} Qd7 {[%emt 0:04:55]} 20. Nc4 {[%emt 0:03:09]} Ra4 {[%emt 0:01:32]} 21. Rb3 {[%emt 0:05:07]} Rxb3 {[%emt 0:00:41]} 22. Qxb3 {[%emt 0:00:01]} Ra8 {[%emt 0:00:48]} 23. Qe3 {[%emt 0:04:49]} Qb5 {[%emt 0:01:36]} 24. b3 {[%emt 0:00:11]} Ra7 {[%emt 0:01:02]} 25. Bxf6 {[%emt 0:01:00]} Bxf6 {[%emt 0:00:09]} 26. Qxh6 {[%emt 0:00:34]} g5 {[%emt 0:03:48]} 27. Qh5 {[%emt 0:00:24]} Ra4 {[%emt 0:00:59]} 28. Qd1 {[%emt 0:00:48]} Ra8 {[%emt 0:00:26]} 29. Qc2 {[%emt 0:00:48]} Kg7 {[%emt 0:01:08]} 30. Rd1 {[%emt 0:00:55]} Bd4 {[%emt 0:02:39]} 31. Rd3 {[%emt 0:01:00]} f6 {[%emt 0:00:39]} 32. Rg3 {[%emt 0:03:24]} Kf8 {[%emt 0:01:18]} 33. h4 {[%emt 0:01:43]} gxh4 {[%emt 0:01:23]} 34. Rh3 {[%emt 0:00:17]} Ke8 {[%emt 0:00:21]} 35. Rxh4 {[%emt 0:00:42]} Kd7 {[%emt 0:00:41]} 36. Qd3 {[%emt 0:01:02]} Rb8 {[%emt 0:00:59]} 37. Rh3 {[%emt 0:00:46]} Kc7 {[%emt 0:02:25]} 38. Qf3 {[%emt 0:01:22]} Re8 {[%emt 0:01:45]} 39. Qh5 {[%emt 0:00:42]} Be5 {[%emt 0:00:51]} 40. Qf7 {[%emt 0:00:42]} Qd7 {[%emt 0:00:43]} 41. Qg6 {[%emt 0:00:26]} Rb8 {[%emt 0:00:27]} 42. Qf7 {[%emt 0:00:36]} Re8 {[%emt 0:00:27]} 43. a4 {[%emt 0:00:25]} Ra8 {[%emt 0:00:26]} 44. a5 {[%emt 0:00:35]} Re8 {[%emt 0:00:44]} 45. Rh7 {[%emt 0:00:33]} Qb5 {[%emt 0:00:29]} 46. Rh3 {[%emt 0:00:36]} Qd7 {[%emt 0:00:35]} 47. Rh7 {[%emt 0:00:26]} Qb5 {[%emt 0:00:05]} 48. g3 {[%emt 0:00:27]} Bc3 {[%emt 0:00:41]} 49. Qe6 {[%emt 0:00:25]} Qd7 {[%emt 0:00:06]} 50. Qf7 {[%emt 0:00:35]} Qb5 {[%emt 0:00:25]} 51. Qe6 {[%emt 0:00:34]} Qd7 {[%emt 0:00:09]} 52. Qxd7+ {[%emt 0:00:10]} Kxd7 {[%emt 0:00:03]} 53. Kf1 {[%emt 0:00:34]} Rb8 {[%emt 0:00:47]} 54. Nb6+ {[%emt 0:00:04]} Kd8 {[%emt 0:00:04]} 55. Rh8+ {[%emt 0:00:13]} Kc7 {[%emt 0:00:05]} 56. Rxb8 {[%emt 0:00:05]} Kxb8 {[%emt 0:00:03]} 57. Nc4 {[%emt 0:00:37]} Kb7 {[%emt 0:00:16]} 58. Ke2 {[%emt 0:00:31]} Ka6 {[%emt 0:00:04]} 59. f4 {[%emt 0:00:52]} Bxa5 {[%emt 0:01:20]} 60. Nxa5 {[%emt 0:01:07]} Kxa5 {[%emt 0:00:05]} 61. g4 {[%emt 0:00:38]} Kb4 {[%emt 0:00:50]} 62. g5 {[%emt 0:00:02]} fxg5 {[%emt 0:00:08]} 63. fxg5 {[%emt 0:00:01]} Kxb3 {[%emt 0:00:06]} 64. g6 {[%emt 0:00:10]} c4 {[%emt 0:00:14]} 65. g7 {[%emt 0:00:01]} c3 {[%emt 0:00:05]} 66. g8=Q {[%emt 0:00:05]} Kb2 {[%emt 0:00:35]} 67. Qb8+ {[%emt 0:00:21]} Kc1 {[%emt 0:00:23]} 68. Qb3 {[%emt 0:00:26]} c2 {[%emt 0:00:06]} 69. Kd3 {[%emt 0:00:06]} Kd1 {[%emt 0:00:15]} 70. Qxc2+ {[%emt 0:00:03]} Ke1 {[%emt 0:00:09]} 71. Qe2# {[%emt 0:00:03]} 1-0